fUSD/lending_fUSD_20240613
["ID","MTS","AMOUNT","RATE_DAILY","PERIOD"]
[329328664,1718248251533,-273.90039975,0.000299,7]
[329328665,1718248251559,-273.90039975,0.000299,7]
[329328666,1718248251576,-274.4,0.000299,7]
[329328667,1718248251594,-333.21814456,0.000299,2]
[329328668,1718248251605,-4377.93045286,0.000299,15]
[329328669,1718248251615,-205.99543639,0.000299,2]
[329328670,1718248251634,-390.94174091,0.000299,2]
[329328671,1718248251648,-150.0,0.00029922,2]
[329328672,1718248251661,-151.0,0.00029931,2]
[329328673,1718248251672,-150.0,0.00029944,2]
[329328674,1718248251683,-5000.0,0.00029946,2]
[329328675,1718248251693,-384.51160749,0.00029948,26]
[329328676,1718248251703,-150.0,0.00029952,2]
[329328677,1718248251714,-150.0,0.00029954,2]
[329328678,1718248251725,-171.92504053,0.00029963,2]
[329328679,1718248251741,-4576.2713662,0.00029979,2]
[329328680,1718248251753,-4664.0267037,0.00029979,2]
[329328681,1718248251768,-4751.7820412,0.00029979,2]
[329328682,1718248251779,-4839.5373787,0.00029979,2]
[329328683,1718248251789,-4927.2927162,0.00029979,2]
[329328684,1718248251801,-245.152749,0.00029979,7]
[329328685,1718248251812,-245.152749,0.00029979,7]
[329328686,1718248251825,-151.0,0.00029979,7]
[329328687,1718248251843,-151.0,0.00029979,7]
[329328688,1718248251861,-2976.2079982,0.00029979,2]
[329328689,1718248251899,-3033.2802556,0.00029979,2]
[329328690,1718248251934,-3090.352513,0.00029979,2]
[329328691,1718248251948,-3147.4247704,0.00029979,2]
[329328692,1718248251959,-3204.4970279,0.00029979,2]
[329328693,1718248251973,-151.0,0.00029979,7]
[329328694,1718248251993,-250.269848,0.00029979,7]
[329328695,1718248252023,-12544.6615719,0.00029979,2]
[329328696,1718248252058,-12725.1012938,0.00029979,2]
[329328697,1718248252080,-12905.5410156,0.00029979,2]
[329328698,1718248252094,-13085.9807375,0.00029979,2]
[329328699,1718248252114,-13266.4204594,0.00029979,2]
[329328700,1718248252130,-150.0,0.00029993,2]
[329328701,1718248252152,-155.0,0.00029995,2]
[329328702,1718248252171,-406.91762393,0.00029996,2]
[329328703,1718248252190,-1559.69520997,0.00029998,2]
[329328704,1718248252212,-1173.97085002,0.00029998,2]
[329328705,1718248252227,-5900.0,0.00029998,10]
[329328706,1718248252243,-23617.87761693,0.00029998,5]
[329328707,1718248252265,-1608.06135064,0.00029998,2]
[329328708,1718248252309,-855.42176673,0.00029998,2]
[329328709,1718248252327,-364.20577069,0.00029998,2]
[329328710,1718248252346,-2351.48700582,0.00029998,2]
[329328711,1718248252367,-492.17800964,0.00029998,2]
[329328712,1718248252383,-161.88401687,0.00029998,2]
[329328713,1718248252400,-4475.72305211,0.00029998,2]
[329328714,1718248252415,-242.840642,0.00029998,2]
[329328715,1718248252430,-544.77465953,0.00029998,2]
[329328716,1718248252447,-651.13041606,0.00029998,2]
[329328717,1718248252460,-341.22579186,0.00029998,2]
[329328718,1718248252478,-251.45160725,0.00029998,2]
[329328719,1718248252492,-157.93957052,0.00029998,2]
[329328720,1718248252509,-155.72236925,0.00029998,2]
[329328721,1718248252533,-326.10422737,0.00029998,2]
[329328722,1718248252546,-807.68750229,0.00029998,2]
[329328723,1718248252559,-267.49932088,0.00029998,2]
[329328724,1718248252591,-155.86608333,0.00029998,2]
[329328725,1718248252612,-42226.921896,0.00029998,2]
[329328726,1718248252633,-457.12488284,0.00029998,2]
[329328727,1718248252651,-155.22569345,0.00029998,2]
[329328728,1718248252669,-263.04645392,0.00029998,2]
[329328729,1718248252690,-569.60320223,0.00029998,2]
[329328730,1718248252731,-20177.27193762,0.00029998,2]
[329328731,1718248252755,-155.4354829,0.00029998,2]
[329328732,1718248252774,-1827.59323947,0.00029998,2]
[329328733,1718248252790,-743.91665659,0.00029998,2]
[329328734,1718248252807,-157.29280923,0.00029998,2]
[329328735,1718248252827,-2061.17227908,0.00029998,2]
[329328736,1718248252845,-225.71934609,0.00029998,2]
[329328737,1718248252859,-358.98715638,0.00029998,2]
[329328738,1718248252874,-176.02304496,0.00029998,2]
[329328739,1718248252888,-277.81092177,0.00029998,2]
[329328740,1718248252907,-1072.62019699,0.00029998,2]
[329328741,1718248252946,-1131.46471461,0.00029998,2]
[329328742,1718248252962,-1000.0,0.00029998,2]
[329328743,1718248252978,-303.43940935,0.00029998,2]
[329328744,1718248253000,-260.50413628,0.00029998,2]
[329328745,1718248253022,-29871.54639199,0.00029998,2]
[329328746,1718248253040,-155.45609756,0.00029998,2]
[329328747,1718248253054,-267.00542666,0.00029998,2]
[329328748,1718248253076,-708.69401952,0.00029998,2]
[329328749,1718248253090,-1604.60035557,0.00029998,2]
[329328750,1718248253107,-329.08572604,0.00029998,2]
[329328751,1718248253120,-216.97686736,0.00029998,2]
[329328752,1718248253134,-155.4663934,0.00029998,120]
[329328753,1718248253147,-157.46119708,0.00029998,2]
[329328754,1718248253164,-155.34414962,0.00029998,2]
[329328755,1718248253178,-1912.46870621,0.00029998,2]
[329328756,1718248253196,-389.24157097,0.00029998,2]
[329328757,1718248253210,-207.06887691,0.00029998,2]
[329328758,1718248253225,-157.37393727,0.00029998,2]
[329328759,1718248253246,-155.28054181,0.00029998,2]
[329328760,1718248253269,-155.88871169,0.00029998,2]
[329328761,1718248253286,-210.39913373,0.00029998,2]
[329328762,1718248253303,-155.72299639,0.00029998,2]
[329328763,1718248253339,-9739.74289968,0.00029998,2]
[329328764,1718248253354,-155.9680426,0.00029998,2]
[329328765,1718248253369,-156.30554904,0.00029998,2]
[329328766,1718248253383,-155.26340549,0.00029998,2]
[329328767,1718248253397,-246.72665707,0.00029998,2]
[329328768,1718248253412,-239.26203934,0.00029998,2]
[329328769,1718248253426,-1058.92538118,0.00029998,2]
[329328770,1718248253454,-349.72391082,0.00029998,2]
[329328771,1718248253482,-297.64057398,0.00029998,2]
[329328772,1718248253503,-354.60584827,0.00029998,2]
[329328773,1718248253545,-206.52176672,0.00029998,2]
[329328774,1718248253559,-223.36244035,0.00029998,2]
[329328775,1718248253578,-468.94608337,0.00029998,2]
[329328776,1718248253596,-156.49209965,0.00029998,2]
[329328777,1718248253614,-168.1727453,0.00029998,2]
[329328778,1718248253633,-155.26956965,0.00029998,2]
[329328779,1718248253650,-509.84875977,0.00029998,2]
[329328780,1718248253666,-17419.52559149,0.00029998,2]
[329328781,1718248253711,-155.54652755,0.00029998,2]
[329328782,1718248253733,-1011.6724071,0.00029998,2]
[329328783,1718248253765,-155.66390736,0.00029998,2]
[329328784,1718248253787,-155.62125181,0.00029998,2]
[329328785,1718248253818,-1005.94871648,0.00029998,2]
[329328786,1718248253834,-151.0,0.00029998,7]
[329328787,1718248253863,-151.0,0.00029998,7]
[329328788,1718248253890,-151.0,0.00029998,7]
[329328789,1718248253911,-186.53066,0.00029998,7]
[329328790,1718248253943,-904.750546,0.00029998,7]
[329328791,1718248253963,-904.750546,0.00029998,7]
[329328792,1718248253978,-151.0,0.00029998,7]
[329328793,1718248254005,-151.0,0.00029998,7]
[329328794,1718248254025,-151.0,0.00029998,7]
[329328795,1718248254039,-151.0,0.00029998,7]
[329328796,1718248254053,-151.0,0.00029998,7]
[329328797,1718248254072,-151.0,0.00029998,7]
[329328798,1718248254084,-151.0,0.00029998,7]
[329328799,1718248254279,-151.0,0.00029998,7]
[329328800,1718248254307,-154.496908,0.00029998,7]
[329328801,1718248254320,-154.496908,0.00029998,7]
[329328802,1718248254337,-151.0,0.00029998,7]
[329328803,1718248254351,-151.0,0.00029998,7]
[329328804,1718248254362,-151.0,0.00029998,7]
[329328805,1718248254374,-248.348734,0.00029998,7]
[329328806,1718248254390,-151.0,0.00029998,7]
[329328807,1718248254401,-151.0,0.00029998,7]
[329328808,1718248254411,-644.188108,0.00029998,7]
[329328809,1718248254423,-644.188108,0.00029998,7]
[329328810,1718248254436,-548.79047624,0.00029999,2]
[329328811,1718248254447,-500.0,0.00029999,2]
[329328812,1718248254460,-500.0,0.00029999,2]
[329328813,1718248254472,-512.63372544,0.00029999,2]
[329328814,1718248254510,-500.0,0.00029999,2]
[329328815,1718248254525,-500.0,0.00029999,2]
[329328816,1718248254554,-500.0,0.00029999,2]
[329328817,1718248254566,-500.0,0.00029999,2]
[329328818,1718248254579,-500.0,0.00029999,2]
[329328819,1718248254594,-500.0,0.00029999,2]
[329328820,1718248254607,-500.0,0.00029999,2]
[329328821,1718248254628,-500.0,0.00029999,2]
[329328822,1718248254641,-500.0,0.00029999,2]
[329328823,1718248254665,-500.0,0.00029999,2]
[329328824,1718248254681,-500.0,0.00029999,2]
[329328825,1718248254702,-500.0,0.00029999,2]
[329328826,1718248254715,-500.0,0.00029999,2]
[329328827,1718248254727,-500.0,0.00029999,2]
[329328828,1718248254753,-500.0,0.00029999,2]
[329328829,1718248254766,-500.0,0.00029999,2]
[329328830,1718248254780,-341.682204,0.00029999,2]
[329328831,1718248254794,-500.0,0.00029999,2]
[329328832,1718248254809,-500.0,0.00029999,2]
[329328833,1718248254826,-500.0,0.00029999,2]
[329328834,1718248254842,-500.0,0.00029999,2]
[329328835,1718248254860,-500.0,0.00029999,2]
[329328836,1718248254873,-500.0,0.00029999,2]
[329328837,1718248254930,-500.0,0.00029999,2]
[329328838,1718248254957,-500.0,0.00029999,2]
[329328839,1718248254982,-500.0,0.00029999,2]
[329328840,1718248255000,-500.0,0.00029999,2]
[329328841,1718248255018,-500.0,0.00029999,2]
[329328842,1718248255034,-200.0,0.00029999,2]
[329328843,1718248255066,-500.0,0.00029999,2]
[329328844,1718248255089,-500.0,0.00029999,2]
[329328845,1718248255106,-500.0,0.00029999,2]
[329328846,1718248255117,-181.06807786,0.00029999,30]
[329328847,1718248255129,-1342.02906396,0.0003,5]
[329328848,1718248255140,-463377.17045396,0.0003,13]
[329328849,1718248255160,-7746825.97679172,0.0003,2]
[329328850,1718248255388,-454.18508886,0.0003,2]
[329328851,1718248255406,-3817.42164095,0.0003,2]
[329328852,1718248255467,-1179.86580013,0.0003,2]
[329328853,1718248255493,-489.59093316,0.0003,2]
[329328854,1718248255507,-583.612171,0.0003,2]
[329328855,1718248255553,-753.000003,0.0003,2]
[329328856,1718248255586,-7976.82680112,0.0003,2]
[329328857,1718248255619,-630.90907367,0.0003,2]
[329328858,1718248255787,-619.73589675,0.000287,2]
[329328859,1718248255809,-11051.23585652,0.0003,2]
[329328860,1718248255855,-468.0,0.0002889,5]
[329328861,1718248255868,-466.80926867,0.0003,2]
[329328862,1718248255886,-960.39317097,0.0003,2]
[329328863,1718248255906,-706.55085503,0.0003,2]
[329328864,1718248256213,-150.0,0.00029294,2]
[329328865,1718248256228,-3192.78780737,0.0003,2]
[329328866,1718248256248,-259.35352265,0.0003,2]
[329328867,1718248256262,-152455.74576884,0.0003,2]
[329328868,1718248256376,-150.0,0.00028835,2]
[329328869,1718248256390,-150.0,0.00028921,2]
[329328870,1718248256414,-150.0,0.00029512,2]
[329328871,1718248256435,-19.33508101,0.00029513,2]
[329328872,1718248257080,-150.0,0.00028522,2]
[329328873,1718248257093,-150.0,0.00028572,2]
[329328874,1718248257104,-254.47077132,0.00028699,2]
[329328875,1718248257116,-187.76139222,0.00028699,2]
[329328876,1718248257131,-150.0,0.00028883,2]
[329328877,1718248257142,-150.0,0.00028911,2]
[329328878,1718248257153,-619.73589675,0.00029,15]
[329328879,1718248257163,-150.0,0.00029036,2]
[329328880,1718248257174,-150.0,0.00029178,2]
[329328881,1718248257185,-69.15649971,0.00029194,2]
[329328882,1718248257235,-150.0,0.00028547,2]
[329328883,1718248257246,-150.0,0.00028607,2]
[329328884,1718248257257,-162.58238186,0.00028699,2]
[329328885,1718248257272,-54.88008448,0.00029194,2]
[329328886,1718248257285,-25.96341581,0.00029194,2]
[329328887,1718248257296,-150.0,0.00029331,2]
[329328888,1718248257308,-150.0,0.00029377,2]
[329328889,1718248257322,-150.0,0.00029461,2]
[329328890,1718248257333,-130.66491899,0.00029513,2]
[329328891,1718248257345,-150.0,0.00029586,2]
[329328892,1718248257356,-100.56574539,0.00029589,2]
[329328893,1718248257646,-426.47551837,0.00028521,2]
[329328894,1718248257660,-1000.0,0.00028521,2]
[329328895,1718248257675,-450.1685986,0.00028699,2]
[329328907,1718249293189,285.3005262,0.0002725,60]
[329328916,1718249432759,-667.21533428,0.00016921,2]
[329328917,1718249432782,-364.29742145,0.00016921,2]
[329328918,1718249432793,-155.0,0.00016922,2]
[329328919,1718249432813,-1000.0,0.00016923,2]
[329328920,1718249432828,-104.57286808,0.00016923,2]
[329328921,1718249433119,-325.40558673,0.00016923,2]
[329328922,1718249433129,-142.69189289,0.00016952,2]
[329328923,1718249433142,-629.80757523,0.00016952,2]
[329328924,1718249433157,-300.0,0.00016955,2]
[329328925,1718249433176,-300.0,0.00017533,2]
[329328926,1718249433188,-420.0,0.0001914,2]
[329328927,1718249433208,-587.0,0.00020893,2]
[329328928,1718249433220,-1128.860903,0.00020895,2]
[329328929,1718249433232,-1250.0,0.00021,2]
[329328930,1718249433249,-477.71,0.00021653,2]
[329328931,1718249433262,-791.16188927,0.00022019,2]
[329328932,1718249433279,-77.72564764,0.00022111,2]
[329328933,1718249433299,-422.26435236,0.00022111,2]
[329328934,1718249433311,-177.99026759,0.00022112,2]
[329328935,1718249433335,-308.68743525,0.00022112,2]
[329328936,1718249433394,-513.32229716,0.00022112,2]
[329328937,1718249433418,-391.64302701,0.00022499,2]
[329328938,1718249433434,-357.46371413,0.00022499,2]
[329328939,1718249433488,-854.70609405,0.00022499,2]
[329328940,1718249433816,-854.16488114,0.00022499,2]
[329328941,1718249433847,-81.09593335,0.00022499,2]
[329328942,1718249433880,-383.37893336,0.00022808,2]
[329328943,1718249433919,-439.62106664,0.00022808,2]
[329328944,1718249433931,-692.76615861,0.00023,2]
[329328945,1718249433952,-607.23384139,0.00023,2]
[329328946,1718249433965,-179.41,0.0002357,2]
[329328947,1718249433976,-250.0,0.00023617,2]
[329328948,1718249433988,-500.0,0.00023741,2]
[329328949,1718249433999,-20925.62,0.00023789,2]
[329328950,1718249434011,-212.58,0.000238,2]
[329328951,1718249434022,-250.0,0.00023865,2]
[329328952,1718249434035,-477.71,0.00023917,2]
[329328953,1718249434047,-250.0,0.00023932,2]
[329328954,1718249434058,-150.46,0.00024065,2]
[329328955,1718249434071,-155.39035855,0.00024135,2]
[329328956,1718249434084,-155.73293388,0.00024142,2]
[329328957,1718249434096,-319.04,0.00024176,2]
[329328958,1718249434108,-154.8461679,0.00024368,2]
[329328959,1718249434118,-162.83691157,0.00024378,2]
[329328960,1718249434139,-222.29,0.00024384,2]
[329328961,1718249434150,-162.83691157,0.00024481,2]
[329328962,1718249434162,-644.38,0.00024599,2]
[329328963,1718249434172,-644.0,0.000246,5]
[329328964,1718249434183,-1152.0,0.00024898,2]
[329328965,1718249434193,-6802.41760684,0.000249,2]
[329328966,1718249434212,-200.96,0.00025,2]
[329328967,1718249434239,-1350.0,0.00025,2]
[329328968,1718249434251,-833.60038454,0.00025,2]
[329328969,1718249434262,-1277.92734148,0.00025,2]
[329328970,1718249434284,-326.25589418,0.00025101,2]
[329328971,1718249434316,-155.05280878,0.00025102,2]
[329328972,1718249434345,-157.95383202,0.000253,2]
[329328973,1718249434373,-154.31227429,0.00025425,2]
[329328974,1718249434386,-154.84616791,0.00025803,2]
[329328975,1718249434398,-157.95383202,0.00025817,2]
[329328976,1718249434409,-155.39035855,0.00025943,2]
[329328977,1718249434426,-155.39035855,0.00026128,2]
[329328978,1718249434449,-477.71,0.00026181,2]
[329328979,1718249434460,-514.0,0.000263,2]
[329328980,1718249434471,-179.41,0.00026309,2]
[329328981,1718249434492,-2260.0,0.000264,2]
[329328982,1718249434508,-150.46,0.00026471,2]
[329328983,1718249434530,-166.74025532,0.00026587,2]
[329328984,1718249434556,-155.39035855,0.00026635,2]
[329328985,1718249434569,-157.95383202,0.00026705,2]
[329328987,1718249434592,-155.39035855,0.00027085,2]
[329328989,1718249434611,-496.851326,0.00027148,2]
[329328991,1718249434637,-181.86007849,0.00027148,2]
[329328993,1718249434649,-778.9737,0.00027148,2]
[329328995,1718249434661,-401.9334,0.00027148,2]
[329328996,1718249434673,-439.0265,0.00027148,2]
[329328997,1718249434704,-1000.0,0.00027148,2]
[329328998,1718249434717,-73010.6727,0.00027148,2]
[329328999,1718249434750,-258.0741,0.00027148,2]
[329329000,1718249434764,-2500.0,0.00027148,2]
[329329001,1718249434775,-1213.4318,0.00027148,2]
[329329003,1718249434797,-1613.0,0.00027179,2]
[329329005,1718249434814,-502.0349,0.000272,2]
[329329007,1718249434827,-154.98051771,0.00027215,2]
[329329008,1718249434848,-500.0,0.00027247,2]
[329329010,1718249434894,-500.0,0.00027247,2]
[329329013,1718249434928,-500.0,0.00027247,2]
[329329015,1718249434985,-500.0,0.00027247,2]
[329329017,1718249435013,-249.60011795,0.00027247,2]
[329329018,1718249435033,-1000.0,0.00027248,2]
[329329020,1718249435046,-39354.0149,0.00027248,2]
[329329021,1718249435074,-245000.0,0.00027248,2]
[329329023,1718249435092,-100000.0,0.00027248,2]
[329329024,1718249435105,-155.0,0.0002725,2]
[329329026,1718249435119,-180.76997474,0.0002725,2]
[329329028,1718249435134,-105702.82039997,0.0002725,2]
[329329031,1718249435155,-1204.94218696,0.0002725,2]
[329329033,1718249435168,-155.39035855,0.00027268,2]
[329329035,1718249435180,-155.39035855,0.00027274,2]
[329329037,1718249435194,-165.09882463,0.00027312,2]
[329329040,1718249435213,-150.0,0.00027371,2]
[329329042,1718249435230,-150.0,0.00027382,2]
[329329044,1718249435247,-154.31227429,0.00027386,2]
[329329046,1718249435265,-150.0,0.00027395,2]
[329329048,1718249435282,-150.19,0.00027397,2]
[329329050,1718249435306,-177.67,0.00027397,2]
[329329052,1718249435323,-155.39035855,0.00027403,2]
[329329054,1718249435363,-150.0,0.00027414,2]
[329329055,1718249435391,-183.487,0.00027438,2]
[329329056,1718249435427,-496.85132599,0.00027454,2]
[329329057,1718249435442,-150.0,0.00027484,2]
[329329058,1718249435457,-163.92698494,0.00027502,2]
[329329059,1718249435475,-155.39035855,0.00027511,2]
[329329060,1718249435486,-150.0,0.00027631,2]
[329329061,1718249435503,-644.38,0.00027674,2]
[329329062,1718249435513,-155.39035855,0.00027688,2]
[329329063,1718249435524,-496.85132599,0.0002776,2]
[329329064,1718249435535,-150.0,0.00027833,2]
[329329065,1718249435546,-163.92698494,0.00027901,2]
[329329066,1718249435557,-150.0,0.00027908,2]
[329329067,1718249435567,-150.0,0.00027964,2]
[329329068,1718249435578,-155.29846776,0.00028013,2]
[329329069,1718249435595,-496.85132599,0.00028065,2]
[329329070,1718249435606,-150.0,0.00028135,2]
[329329071,1718249435622,-178.47,0.0002818,2]
[329329072,1718249435632,-150.0,0.00028185,2]
[329329073,1718249435644,-150.0,0.00028191,2]
[329329074,1718249435656,-1690.0,0.000282,2]
[329329075,1718249435674,-150.19,0.00028203,2]
[329329076,1718249435685,-150.0,0.00028227,2]
[329329077,1718249435707,-165.09882464,0.00028278,2]
[329329078,1718249435717,-224.0,0.000283,2]
[329329079,1718249435743,-155.29846776,0.0002831,2]
[329329080,1718249435756,-496.85132599,0.00028371,2]
[329329081,1718249435770,-477.71,0.00028445,2]
[329329082,1718249435781,-959.83634599,0.00028498,2]
[329329083,1718249435804,-216.61250496,0.00028521,2]
[329329084,1718249435816,-171.19474958,0.00028521,2]
[329329085,1718249435827,-150.0,0.00028529,2]
[329329086,1718249435845,-355.0,0.000286,2]
[329329087,1718249435857,-1000.0,0.000286,2]
[329329088,1718249435873,-496.85132599,0.00028677,2]
[329329089,1718249435904,-157.73602189,0.00028699,2]
[329329090,1718249435922,-150.0,0.00028749,2]
[329329091,1718249435934,-500.0,0.00028798,2]
[329329092,1718249435945,-500.0,0.00028798,2]
[329329093,1718249435956,-500.0,0.00028798,2]
[329329094,1718249435968,-626.31808426,0.00028798,2]
[329329095,1718249435980,-190.76093498,0.000288,2]
[329329096,1718249436010,-500.0,0.000288,2]
[329329097,1718249436022,-500.0,0.000288,2]
[329329098,1718249436035,-500.0,0.000288,2]
[329329099,1718249436045,-500.0,0.000288,2]
[329329100,1718249436058,-500.0,0.000288,2]
[329329101,1718249436069,-500.0,0.000288,2]
[329329102,1718249436093,-500.0,0.000288,2]
[329329103,1718249436107,-500.0,0.000288,2]
[329329104,1718249436118,-500.0,0.000288,2]
[329329105,1718249436129,-500.0,0.000288,2]
[329329106,1718249436148,-500.0,0.000288,2]
[329329107,1718249436164,-500.0,0.000288,2]
[329329108,1718249436176,-500.0,0.000288,2]
[329329109,1718249436187,-500.0,0.000288,2]
[329329110,1718249436198,-500.0,0.000288,2]
[329329111,1718249436210,-500.0,0.000288,2]
[329329112,1718249436222,-500.0,0.000288,2]
[329329113,1718249436235,-500.0,0.000288,2]
[329329114,1718249436250,-500.0,0.000288,2]
[329329115,1718249436261,-500.0,0.000288,2]
[329329116,1718249436276,-500.0,0.000288,2]
[329329117,1718249436288,-500.0,0.000288,2]
[329329118,1718249436299,-500.0,0.000288,2]
[329329119,1718249436319,-500.0,0.000288,2]
[329329120,1718249436330,-500.0,0.000288,2]
[329329121,1718249436356,-500.0,0.000288,2]
[329329122,1718249436368,-500.0,0.000288,2]
[329329123,1718249436393,-500.0,0.000288,2]
[329329124,1718249436409,-500.0,0.000288,2]
[329329125,1718249436425,-500.0,0.000288,2]
[329329126,1718249436436,-500.0,0.000288,2]
[329329127,1718249436458,-500.0,0.000288,2]
[329329128,1718249436470,-500.0,0.000288,2]
[329329129,1718249436483,-500.0,0.000288,2]
[329329130,1718249436504,-500.0,0.000288,2]
[329329131,1718249436517,-10000.0,0.0002883,2]
[329329132,1718249436531,-150.46,0.00028878,2]
[329329133,1718249436543,-150.0,0.00028906,2]
[329329134,1718249436554,-152.0,0.00028916,3]
[329329135,1718249436565,-150.0,0.00028918,2]
[329329136,1718249436576,-203.37,0.00028925,2]
[329329137,1718249436590,-150.0,0.00028931,2]
[329329138,1718249436600,-496.85132599,0.00028983,2]
[329329139,1718249436613,-150.0,0.00029,2]
[329329140,1718249436625,-150.19,0.00029009,2]
[329329141,1718249436639,-150.0,0.00029021,2]
[329329142,1718249436651,-530.52,0.00029041,2]
[329329143,1718249436662,-179.41,0.00029049,2]
[329329144,1718249436673,-150.0,0.00029091,2]
[329329145,1718249436694,-150.0,0.00029093,2]
[329329146,1718249436709,-150.0,0.000291,2]
[329329147,1718249436724,-150.0,0.0002912,2]
[329329148,1718249436742,-150.0,0.00029155,2]
[329329149,1718249436758,-150.0,0.00029175,2]
[329329150,1718249436773,-156.16,0.00029178,2]
[329329151,1718249436785,-150.0,0.00029193,2]
[329329152,1718249436815,-510.0,0.0002922,5]
[329329153,1718249436838,-150.0,0.0002926,2]
[329329154,1718249436857,-496.85132599,0.00029288,15]
[329329155,1718249436875,-150.0,0.0002929,2]
[329329156,1718249436901,-200.0,0.00029314,2]
[329329157,1718249436917,-1000.0,0.00029314,30]
[329329158,1718249436961,-500.0,0.00029314,2]
[329329159,1718249437003,-200.0,0.00029314,2]
[329329160,1718249437021,-150.0,0.00029349,2]
[329329161,1718249437031,-215.7603237,0.00029398,2]
[329329162,1718249437045,-243.06871496,0.000294,4]
[329329163,1718249437085,-150.0,0.00029434,2]
[329329164,1718249437127,-150.0,0.00029446,2]
[329329165,1718249437172,-158.34294021,0.00029455,2]
[329329166,1718249437188,-155.05280878,0.00029465,2]
[329329167,1718249437202,-150.0,0.00029481,2]
[329329168,1718249437221,-500.0,0.00029489,3]
[329329169,1718249437235,-2005.08235378,0.00029501,2]
[329329170,1718249437248,-15085.34066717,0.0002955,2]
[329329171,1718249437271,-154.44640745,0.00029573,2]
[329329172,1718249437304,-49.43425461,0.00029589,2]
[329329173,1718249437341,-496.85132599,0.00029594,15]
[329329174,1718249437389,-150.0,0.00029651,2]
[329329175,1718249437415,-645.0,0.00029669,2]
[329329176,1718249437446,-253.45455834,0.00029698,2]
[329329177,1718249437483,-3119.663,0.000297,4]
[329329178,1718249437523,-2703.02922124,0.000297,4]
[329329179,1718249437546,-416.63377876,0.000297,4]
[329329180,1718249437560,-3119.663,0.000297,4]
[329329181,1718249437592,-3119.663,0.000297,4]
[329329182,1718249437606,-3119.663,0.000297,4]
[329329183,1718249437618,-150.0,0.00029705,2]
[329329184,1718249437630,-150.0,0.00029708,2]
[329329185,1718249437643,-150.0,0.00029759,2]
[329329186,1718249437657,-150.0,0.00029793,2]
[329329187,1718249437672,-214.19652509,0.00029813,2]
[329329188,1718249437705,-150.19,0.00029815,2]
[329329189,1718249437732,-482.49424804,0.0002983,2]
[329329190,1718249437761,-155.39035855,0.00029847,2]
[329329191,1718249437772,-500.0,0.00029862,2]
[329329192,1718249437786,-205.5615067,0.00029898,2]
[329329193,1718249437805,-7500.0,0.00029898,2]
[329329194,1718249437817,-205.5615067,0.00029898,2]
[329329195,1718249437836,-205.5615067,0.00029898,2]
[329329196,1718249437848,-205.5615067,0.00029899,2]
[329329197,1718249437860,-205.5615067,0.00029899,2]
[329329198,1718249437886,-205.5615067,0.00029899,2]
[329329199,1718249437901,-205.5615067,0.00029899,2]
[329329200,1718249437941,-205.5615067,0.00029899,2]
[329329201,1718249437952,-205.5615067,0.00029899,2]
[329329202,1718249437963,-205.5615067,0.000299,2]
[329329205,1718249438081,-205.5615067,0.000299,2]
[329329206,1718249438128,-500.0,0.000299,2]
[329329207,1718249438146,-205.5615067,0.000299,2]
[329329208,1718249438163,-2503.39714468,0.000299,2]
[329329209,1718249438208,-6073.3752192,0.000299,2]
[329329210,1718249438219,-151.12031456,0.000299,2]
[329329211,1718249438244,-496.85132599,0.000299,15]
[329329212,1718249438281,-169.69047594,0.000299,2]
[329329213,1718249438315,-150.0,0.00029912,2]
[329329214,1718249438330,-155.39035855,0.0002992,2]
[329329215,1718249438365,-150.0,0.00029925,2]